fUST/lending_fUST_20241121
["ID","MTS","AMOUNT","RATE_DAILY","PERIOD"]
[342774666,1732140639435,-500.0,0.00023033,2]
[342774668,1732140639445,-1877.07,0.00023033,2]
[342774670,1732140639455,-500.0,0.00023033,2]
[342774672,1732140639463,-454.7209773,0.000231,2]
[342774673,1732140639472,-169.86313977,0.00023272,2]
[342774675,1732140639481,-500.0,0.00023273,2]
[342774677,1732140639490,-177.27456349,0.00023273,2]
[342774679,1732140639500,-500.0,0.00023273,2]
[342774681,1732140639509,-500.0,0.00023287,2]
[342774683,1732140639519,-300.0,0.00023288,2]
[342774685,1732140639528,-645.41,0.00023305,2]
[342774687,1732140639538,-500.0,0.00023306,2]
[342774689,1732140639547,-6265.23,0.00023306,2]
[342774691,1732140639557,-500.0,0.00023306,2]
[342774694,1732140639570,-1434.66,0.00023306,2]
[342774696,1732140639580,-500.0,0.00023307,2]
[342774698,1732140639589,-500.0,0.00023307,2]
[342774700,1732140639599,-1877.07,0.00023307,2]
[342774702,1732140639610,-500.0,0.00023307,2]
[342774704,1732140639620,-500.0,0.00023547,2]
[342774706,1732140639629,-500.0,0.00023547,2]
[342774708,1732140639639,-645.41,0.00023579,2]
[342774710,1732140639649,-500.0,0.0002358,2]
[342774713,1732140639659,-6265.23,0.0002358,2]
[342774716,1732140639668,-500.0,0.0002358,2]
[342774718,1732140639678,-1434.66,0.0002358,2]
[342774720,1732140639687,-500.0,0.00023581,2]
[342774722,1732140639697,-500.0,0.00023581,2]
[342774725,1732140639706,-1877.07,0.00023581,2]
[342774727,1732140639715,-500.0,0.00023581,2]
[342774729,1732140639724,-500.30324771,0.00023725,2]
[342774731,1732140639734,-164.383,0.00023775,4]
[342774733,1732140639743,-262.38503296,0.0002381,2]
[342774735,1732140639753,-500.0,0.0002381,2]
[342774737,1732140639762,-506.95754395,0.0002381,2]
[342774739,1732140639772,-500.0,0.00023821,2]
[342774741,1732140639782,-299.88,0.00023821,2]
[342774743,1732140639791,-500.0,0.00023821,2]
[342774745,1732140639801,-500.0,0.00023821,2]
[342774747,1732140639811,-645.41,0.00023853,2]
[342774749,1732140639823,-500.0,0.00023854,2]
[342774751,1732140639832,-6265.23,0.00023854,2]
[342774753,1732140639841,-500.0,0.00023854,2]
[342774755,1732140639851,-1434.66,0.00023854,2]
[342774756,1732140639875,-500.0,0.00023855,2]
[342774757,1732140639884,-500.0,0.00023855,2]
[342774758,1732140639894,-1877.07,0.00023855,2]
[342774759,1732140639904,-500.0,0.00023855,2]
[342774760,1732140639913,-500.0,0.00023922,2]
[342774761,1732140639924,-500.0,0.00023922,2]
[342774762,1732140639933,-165.0,0.00024,2]
[342774763,1732140639943,-212.2918136,0.00024082,2]
[342774764,1732140639954,-500.0,0.00024094,2]
[342774765,1732140639964,-500.0,0.00024094,2]
[342774766,1732140639975,-500.0,0.00024094,2]
[342774767,1732140639984,-500.0,0.00024095,2]
[342774768,1732140639995,-151.0,0.00024095,7]
[342774769,1732140640004,-500.0,0.00024095,2]
[342774770,1732140640015,-500.0,0.00024095,2]
[342774771,1732140640024,-500.0,0.00024106,2]
[342774772,1732140640034,-500.55988657,0.00024106,2]
[342774773,1732140640043,-645.41,0.00024127,2]
[342774774,1732140640054,-500.0,0.00024128,2]
[342774775,1732140640063,-6265.23,0.00024128,2]
[342774777,1732140640073,-500.0,0.00024128,2]
[342774779,1732140640082,-1434.66,0.00024128,2]
[342774781,1732140640091,-191.12124849,0.00024129,2]
[342774783,1732140640101,-500.0,0.00024129,2]
[342774785,1732140640115,-1877.07,0.00024129,2]
[342774787,1732140640125,-500.0,0.00024129,2]
[342774788,1732140640134,-500.0,0.00024134,2]
[342774789,1732140640144,-500.0,0.00024134,2]
[342774790,1732140640154,-623.50550871,0.00024134,2]
[342774791,1732140640164,-500.0,0.00024134,2]
[342774792,1732140640173,-500.0,0.00024134,2]
[342774793,1732140640184,-583.91587119,0.00024134,2]
[342774794,1732140640194,-216.02145019,0.00024134,2]
[342774795,1732140640203,-500.0,0.00024134,2]
[342774796,1732140640213,-552.05671275,0.00024134,2]
[342774797,1732140640222,-327.61288587,0.00024206,2]
[342774798,1732140640231,-200.28301075,0.00024369,2]
[342774799,1732140640241,-500.0,0.00024369,2]
[342774800,1732140640251,-500.0,0.00024369,2]
[342774802,1732140640260,-500.0,0.00024369,2]
[342774804,1732140640269,-645.41,0.00024401,2]
[342774806,1732140640278,-500.0,0.00024402,2]
[342774807,1732140640289,-500.0,0.00024402,2]
[342774809,1732140640299,-6265.23,0.00024402,2]
[342774811,1732140640308,-1434.66,0.00024402,2]
[342774814,1732140640318,-500.0,0.00024403,2]
[342774815,1732140640328,-1877.07,0.00024403,2]
[342774818,1732140640339,-316.70345519,0.00024403,2]
[342774819,1732140640349,-1000.0,0.0002447,2]
[342774822,1732140640360,-1000.0,0.0002447,2]
[342774823,1732140640372,-1110.0,0.00024503,2]
[342774825,1732140640381,-466.748,0.00024503,2]
[342774828,1732140640391,-2385.0,0.00024503,2]
[342774829,1732140640400,-500.30324771,0.00024551,2]
[342774831,1732140640410,-500.0,0.00024642,2]
[342774833,1732140640419,-1000.0,0.00024642,2]
[342774835,1732140640429,-151.0,0.00024642,7]
[342774837,1732140640438,-151.0,0.00024642,7]
[342774839,1732140640448,-500.0,0.00024643,2]
[342774841,1732140640457,-200.31722712,0.00024643,2]
[342774843,1732140640467,-500.0,0.00024643,2]
[342774845,1732140640477,-151.0,0.00024643,7]
[342774847,1732140640487,-151.0,0.00024643,7]
[342774849,1732140640497,-151.0,0.00024643,7]
[342774851,1732140640506,-500.0,0.00024643,2]
[342774853,1732140640516,-500.0,0.00024657,4]
[342774855,1732140640525,-420.0,0.00024674,2]
[342774857,1732140640535,-645.41,0.00024675,2]
[342774859,1732140640545,-500.0,0.00024676,2]
[342774861,1732140640555,-500.0,0.00024676,2]
[342774863,1732140640564,-6265.23,0.00024676,2]
[342774865,1732140640574,-1434.66,0.00024676,2]
[342774867,1732140640584,-500.0,0.00024677,2]
[342774869,1732140640593,-1877.07,0.00024677,2]
[342774871,1732140640603,-500.0,0.00024682,2]
[342774873,1732140640615,-27785.31,0.000247,14]
[342774875,1732140640625,-151.0,0.000247,7]
[342774877,1732140640634,-80000.0,0.000249,14]
[342774879,1732140640644,-151.0,0.000249,7]
[342774881,1732140640653,-151.0,0.000249,7]
[342774883,1732140640663,-240.5108,0.000249,7]
[342774885,1732140640672,-151.0,0.000249,7]
[342774887,1732140640682,-249.54,0.00024917,2]
[342774889,1732140640692,-723.0,0.00024917,2]
[342774891,1732140640702,-250.8047734,0.00024917,2]
[342774894,1732140640712,-500.0,0.00024917,2]
[342774896,1732140640722,-286.50367906,0.00024917,2]
[342774898,1732140640732,-645.41,0.00024949,2]
[342774900,1732140640742,-500.0,0.0002495,2]
[342774902,1732140640752,-500.0,0.0002495,2]
[342774904,1732140640762,-6265.23,0.0002495,2]
[342774906,1732140640771,-1434.66,0.0002495,2]
[342774908,1732140640780,-500.0,0.00024951,2]
[342774910,1732140640791,-1877.07,0.00024951,2]
[342774912,1732140640801,-420.0,0.00024996,2]
[342774914,1732140640810,-303.06060909,0.00025,2]
[342774916,1732140640820,-303.07273321,0.00025,2]
[342774918,1732140640829,-500.0,0.00025191,2]
[342774920,1732140640838,-645.41,0.00025223,2]
[342774922,1732140640848,-500.0,0.00025224,2]
[342774924,1732140640857,-500.0,0.00025224,2]
[342774926,1732140640877,-6265.23,0.00025224,2]
[342774928,1732140640886,-1434.66,0.00025224,2]
[342774930,1732140640895,-500.0,0.00025225,2]
[342774932,1732140640905,-1877.07,0.00025225,2]
[342774934,1732140640915,-303.06060909,0.0002525,2]
[342774936,1732140640924,-151.81388629,0.0002525,2]
[342774938,1732140640935,-362.6,0.000253,2]
[342774940,1732140640944,-165.0,0.00025358,2]
[342774942,1732140640954,-500.0,0.00025465,2]
[342774944,1732140640963,-502.19648279,0.00025472,2]
[342774946,1732140640973,-645.41,0.00025497,2]
[342774948,1732140640983,-500.0,0.00025498,2]
[342774950,1732140640993,-500.0,0.00025498,2]
[342774952,1732140641003,-6265.23,0.00025498,2]
[342774954,1732140641012,-1434.66,0.00025498,2]
[342774956,1732140641022,-500.0,0.00025499,2]
[342774957,1732140641032,-1877.07,0.00025499,2]
[342774959,1732140641042,-303.06060909,0.000255,2]
[342774961,1732140641051,-1320.14634319,0.00025644,2]
[342774963,1732140641061,-500.0,0.00025739,2]
[342774965,1732140641071,-303.06060909,0.0002575,2]
[342774968,1732140641081,-645.41,0.00025771,2]
[342774969,1732140641090,-500.0,0.00025772,2]
[342774971,1732140641100,-500.0,0.00025772,2]
[342774973,1732140641114,-6265.23,0.00025772,2]
[342774975,1732140641123,-1434.66,0.00025772,2]
[342774977,1732140641133,-151.0,0.00025772,7]
[342774979,1732140641142,-199.769644,0.00025773,7]
[342774981,1732140641152,-500.0,0.00025773,2]
[342774983,1732140641162,-1877.07,0.00025773,2]
[342774985,1732140641171,-500.0,0.00025846,9]
[342774987,1732140641181,-293.0,0.00026,2]
[342774989,1732140641192,-303.06060909,0.00026,2]
[342774991,1732140641203,-500.0,0.00026013,2]
[342774993,1732140641212,-500.0,0.00026027,6]
[342774995,1732140641222,-645.41,0.00026045,2]
[342775006,1732140641314,-277.66415718,0.00026046,2]
[342775008,1732140641325,-500.0,0.00026046,2]
[342775010,1732140641334,-6265.23,0.00026046,2]
[342775012,1732140641344,-1434.66,0.00026046,2]
[342775014,1732140641354,-203.49,0.00026047,2]
[342775016,1732140641365,-1877.07,0.00026047,2]
[342775018,1732140641374,-454.59091364,0.0002625,4]
[342775020,1732140641383,-500.0,0.00026287,2]
[342775022,1732140641393,-180.851638,0.00026301,7]
[342775024,1732140641402,-259.57296,0.00026301,2]
[342775026,1732140641413,-259.57296,0.00026301,8]
[342775028,1732140641423,-259.57296,0.00026301,14]
[342775030,1732140641432,-259.57296,0.00026301,20]
[342775032,1732140641442,-259.57296,0.00026301,26]
[342775034,1732140641452,-259.57296,0.00026301,33]
[342775036,1732140641462,-259.57296,0.00026301,39]
[342775038,1732140641471,-259.57296,0.00026301,45]
[342775040,1732140641482,-259.57296,0.00026301,51]
[342775042,1732140641492,-259.57296,0.00026301,57]
[342775044,1732140641502,-259.57296,0.00026301,64]
[342775046,1732140641512,-259.57296,0.00026301,70]
[342775048,1732140641521,-259.57296,0.00026301,76]
[342775050,1732140641531,-259.57296,0.00026301,82]
[342775052,1732140641541,-259.57296,0.00026301,88]
[342775054,1732140641551,-259.57296,0.00026301,95]
[342775056,1732140641561,-259.57296,0.00026301,101]
[342775058,1732140641570,-259.57296,0.00026301,107]
[342775060,1732140641580,-259.57296,0.00026301,113]
[342775062,1732140641590,-259.57296,0.00026301,120]
[342775064,1732140641599,-645.41,0.00026319,2]
[342775066,1732140641609,-500.0,0.0002632,2]
[342775068,1732140641618,-6265.23,0.0002632,2]
[342775070,1732140641627,-1434.66,0.0002632,2]
[342775072,1732140641637,-1877.07,0.00026321,2]
[342775074,1732140641647,-650.2672993,0.00026384,2]
[342775076,1732140641656,-642.6,0.00026488,15]
[342775078,1732140641665,-454.59091364,0.000265,4]
[342775080,1732140641675,-500.0,0.00026561,2]
[342775082,1732140641684,-293.0,0.00026576,2]
[342775084,1732140641694,-645.41,0.00026593,2]
[342775086,1732140641703,-313.82445949,0.00026594,2]
[342775088,1732140641712,-6265.23,0.00026594,2]
[342775090,1732140641724,-1434.66,0.00026594,2]
[342775092,1732140641733,-1877.07,0.00026595,2]
[342775094,1732140641742,-150.112233,0.000266,11]
[342775096,1732140641752,-165.0,0.00026625,2]
[342775098,1732140641761,-465.24970908,0.0002675,4]
[342775100,1732140641771,-457.0,0.00026793,2]
[342775102,1732140641780,-1000.0,0.000268,2]
[342775104,1732140641790,-7879.52855468,0.00026817,7]
[342775106,1732140641799,-500.0,0.00026835,2]
[342775108,1732140641808,-645.41,0.00026867,2]
[342775110,1732140641818,-6265.23,0.00026868,2]
[342775112,1732140641828,-1434.66,0.00026868,2]
[342775113,1732140641837,-189.880256,0.00026868,7]
[342775115,1732140641847,-1877.07,0.00026869,2]
[342775117,1732140641856,-263.37203584,0.00026886,10]
[342775119,1732140641867,-500.0,0.00026886,10]
[342775121,1732140641876,-27785.31,0.000269,14]
[342775124,1732140641885,-203.74565,0.00027,120]
[342775126,1732140641897,-2000.0,0.00027,3]
[342775128,1732140641907,-500.0,0.00027109,2]
[342775130,1732140641916,-645.41,0.00027141,2]
[342775132,1732140641926,-6265.23,0.00027142,2]
[342775134,1732140641935,-1434.66,0.00027142,2]
[342775136,1732140641944,-1877.07,0.00027143,2]
[342775138,1732140641954,-150.112233,0.000272,19]
[342775139,1732140641963,-150.112233,0.000272,10]
[342775142,1732140641972,-500.0,0.00027383,2]
[342775143,1732140641982,-350.44165351,0.00027397,2]
[342775145,1732140641991,-500.0,0.00027397,8]
[342775148,1732140642001,-500.0,0.00027397,2]
[342775149,1732140642011,-2315.778804,0.00027397,120]
[342775152,1732140642020,-186.72987092,0.00027397,2]
[342775154,1732140642030,-2000.0,0.000274,3]
[342775156,1732140642040,-1815.57,0.000274,30]
[342775158,1732140642049,-645.41,0.00027415,2]
[342775160,1732140642059,-6265.23,0.00027416,2]
[342775162,1732140642069,-1434.66,0.00027416,2]
[342775164,1732140642078,-1877.07,0.00027417,2]
[342775166,1732140642088,-252.0,0.00027496,2]
[342775168,1732140642098,-1082.71088343,0.00027557,2]
[342775170,1732140642110,-2000.0,0.000276,3]
[342775172,1732140642122,-293.0,0.00027617,2]
[342775174,1732140642131,-500.0,0.00027657,2]
[342775176,1732140642140,-500.0,0.00027671,2]
[342775178,1732140642149,-645.41,0.00027689,2]
[342775180,1732140642159,-6265.23,0.0002769,2]
[342775182,1732140642169,-1434.66,0.0002769,2]
[342775184,1732140642178,-1877.07,0.00027691,2]
[342775186,1732140642189,-1082.71088336,0.00027708,2]
[342775188,1732140642199,-150.112233,0.000278,14]
[342775190,1732140642208,-150.112233,0.000278,19]
[342775192,1732140642218,-153.0,0.00027835,2]
[342775194,1732140642227,-153.0,0.00027835,2]
[342775196,1732140642237,-153.0,0.00027837,2]
[342775198,1732140642246,-1082.71088336,0.00027858,2]
[342775200,1732140642255,-500.0,0.00027931,2]
[342775202,1732140642265,-500.0,0.00027945,2]
[342775204,1732140642275,-645.41,0.00027963,2]
[342775206,1732140642284,-6265.23,0.00027964,2]
[342775208,1732140642293,-1434.66,0.00027964,2]
[342775211,1732140642312,-1877.07,0.00027965,2]
[342775213,1732140642322,-4696.66003468,0.0002799,7]
[342775215,1732140642332,-2000.32,0.00028,7]
[342775217,1732140642343,-157772.16426431,0.00028,30]
[342775219,1732140642352,-798.08076775,0.00028,2]
[342775221,1732140642362,-1082.71088336,0.00028009,2]
[342775223,1732140642372,-800.84411547,0.0002802,2]
[342775225,1732140642382,-300.0,0.000281,2]
[342775227,1732140642392,-1082.71088336,0.0002816,2]
[342775229,1732140642402,-2000.0,0.000282,7]
[342775231,1732140642412,-500.0,0.00028205,2]
[342775233,1732140642422,-500.0,0.00028219,2]
[342775235,1732140642431,-645.41,0.00028237,2]
[342775237,1732140642441,-6265.23,0.00028238,2]
[342775239,1732140642452,-1434.66,0.00028238,2]
[342775241,1732140642462,-1877.07,0.00028239,2]
[342775243,1732140642472,-1082.71088336,0.0002831,2]
[342775245,1732140642481,-62470.37137747,0.000284,2]
[342775247,1732140642491,-4000.0,0.000284,7]
[342775248,1732140642501,-150.112233,0.000284,17]
[342775249,1732140642511,-150.112233,0.000284,14]
[342775250,1732140642521,-1082.71088336,0.00028461,2]
[342775251,1732140642531,-500.0,0.00028479,2]
[342775252,1732140642540,-500.0,0.00028493,2]
[342775253,1732140642552,-645.41,0.00028511,2]
[342775254,1732140642562,-6265.23,0.00028512,2]
[342775255,1732140642572,-1434.66,0.00028512,2]
[342775256,1732140642582,-1877.07,0.00028513,2]
[342775257,1732140642592,-4000.0,0.000286,7]
[342775258,1732140642602,-1082.71088336,0.00028612,2]
[342775259,1732140642613,-330.0,0.00028667,2]
[342775260,1732140642623,-1448.99432462,0.00028748,20]
[342775261,1732140642633,-500.0,0.00028753,2]
[342775262,1732140642642,-1082.71088336,0.00028762,2]
[342775263,1732140642652,-500.0,0.00028767,2]
[342775264,1732140642662,-645.41,0.00028785,2]
[342775265,1732140642672,-6265.23,0.00028786,2]
[342775266,1732140642682,-1434.66,0.00028786,2]
[342775267,1732140642692,-1877.07,0.00028787,2]
[342775268,1732140642702,-2000.0,0.000288,8]
[342775269,1732140642711,-1815.57,0.000288,30]
[342775270,1732140642721,-155.87,0.000288,31]
[342775271,1732140642731,-500.0,0.000289,2]
[342775272,1732140642741,-1082.71088336,0.00028913,2]
[342775273,1732140642751,-800.84411547,0.00028914,2]
[342775274,1732140642762,-299.0,0.00028998,2]
[342775275,1732140642771,-151.0,0.00028999,15]
[342775276,1732140642782,-1000.0,0.00029,29]
[342775277,1732140642792,-44867.1559522,0.00029,120]
[342775278,1732140642802,-1308.67295017,0.00029,7]
[342775280,1732140642811,-27785.31,0.00029,14]
[342775282,1732140642821,-500.0,0.00029,10]
[342775285,1732140642830,-500.0,0.00029,10]
[342775287,1732140642840,-500.0,0.00029,10]
[342775289,1732140642849,-276.91382743,0.00029,10]
[342775291,1732140642859,-484.95130947,0.00029013,2]
[342775294,1732140642871,-484.95130947,0.00029013,2]
[342775296,1732140642880,-262762.6423561,0.00029013,10]
[342775306,1732140642964,-28490.50885461,0.00029013,10]
[342775308,1732140642977,-1339.98507081,0.00029013,10]
[342775310,1732140642988,-1683.71418326,0.00029013,10]
[342775318,1732140643049,-500.30324771,0.00025376,2]
[342775320,1732140643059,-141690.04280183,0.00029013,10]
[342775322,1732140643071,-1520.75,0.00029013,10]
[342775324,1732140643082,-627.19694,0.00029013,10]
[342775362,1732140643449,-500.30324771,0.00026201,2]
[342775364,1732140643459,-482.5,0.00026488,15]
[342775366,1732140643468,-792.73327229,0.00029013,10]
[342775658,1732140646372,-436.835,0.00026488,15]
[342795959,1732141832662,-3805.06186394,0.00018,2]
[342795960,1732141832672,-603.3129018,0.00021818,2]
[342795961,1732141832681,-753.34870074,0.00022657,2]
[342795962,1732141832691,-300.0,0.00022755,2]
[342795963,1732141832702,-300.0,0.00022755,2]
[342795964,1732141832711,-500.0,0.00022756,2]
[342795965,1732141832721,-500.0,0.00022756,2]
[342795966,1732141832730,-500.0,0.00022756,2]
[342795967,1732141832740,-500.0,0.00022756,2]
[342795968,1732141832750,-354.95225408,0.00022756,2]
[342795969,1732141832766,-145.04774592,0.00022756,2]
[342795970,1732141832775,-183.30412702,0.00022756,2]
[342795991,1732141838745,-316.69587298,0.00022756,2]
[342795992,1732141838755,-291.00650213,0.00022756,2]
[342795993,1732141838765,-294.49276376,0.00022756,2]
[342795994,1732141838775,-500.0,0.00022756,2]
[342795995,1732141838786,-500.0,0.00022756,2]
[342795996,1732141838795,-500.0,0.00022756,2]
[342795997,1732141838805,-500.0,0.00022756,2]
[342795998,1732141838814,-500.0,0.00022756,2]
[342795999,1732141838825,-500.0,0.00022756,2]
[342796000,1732141838834,-500.0,0.00022756,2]
[342796001,1732141838843,-500.0,0.00022756,2]
[342796002,1732141838853,-295.80234795,0.00022756,2]
[342796003,1732141838863,-500.0,0.00022756,2]
[342796004,1732141838872,-500.0,0.00022756,2]
[342796005,1732141838881,-500.0,0.00022756,2]
[342796006,1732141838890,-500.0,0.00022756,2]
[342796007,1732141838899,-500.0,0.00022756,2]
[342796008,1732141838911,-500.0,0.00022756,2]
[342796009,1732141838920,-744.23,0.00022756,2]
[342796010,1732141838929,-500.0,0.00022756,2]
[342796011,1732141838939,-500.0,0.00022756,2]
[342796012,1732141838948,-500.0,0.00022756,2]
[342796014,1732141838958,-500.0,0.00022756,2]
[342796016,1732141838967,-500.0,0.00022756,2]
[342796017,1732141838976,-500.0,0.00022756,2]
[342796019,1732141838986,-181.26,0.00022756,2]
[342796021,1732141838995,-500.0,0.00022756,2]
[342796022,1732141839005,-500.0,0.00022756,2]
[342796023,1732141839015,-500.0,0.00022756,2]
[342796024,1732141839025,-500.0,0.00022756,2]
[342796025,1732141839035,-500.0,0.00022756,2]
[342796026,1732141839046,-500.0,0.00022756,2]
[342796027,1732141839055,-353.31710502,0.00022756,2]
[342796028,1732141839066,-500.0,0.00022756,2]
[342796029,1732141839077,-208.21921404,0.00022756,2]
[342796030,1732141839086,-500.0,0.00022756,2]
[342796031,1732141839096,-500.0,0.00022756,2]
[342796032,1732141839107,-500.0,0.00022756,2]
[342796033,1732141839117,-500.0,0.00022756,2]
[342796034,1732141839127,-500.0,0.00022756,2]
[342796035,1732141839137,-500.0,0.00022756,2]
[342796036,1732141839146,-503.41,0.00022756,2]
[342796037,1732141839155,-727.64,0.00022756,2]
[342796038,1732141839164,-289.91943995,0.00022756,2]
[342796039,1732141839174,-500.0,0.00022756,2]
[342796040,1732141839183,-587.56135364,0.00022756,2]
[342796041,1732141839192,-500.0,0.00022756,2]
[342796042,1732141839201,-500.0,0.00022756,2]
[342796043,1732141839210,-500.0,0.00022756,2]
[342796044,1732141839219,-316.70951343,0.00022756,2]
[342796045,1732141839231,-183.29048657,0.00022756,2]
[342796046,1732141839240,-500.0,0.00022756,2]
[342796047,1732141839249,-500.0,0.00022756,2]
[342796048,1732141839259,-500.0,0.00022756,2]
[342796049,1732141839268,-500.0,0.00022756,2]
[342796050,1732141839277,-204.68808849,0.00022756,2]
[342796054,1732141840332,-295.31191151,0.00022756,2]
[342796055,1732141840342,-500.0,0.00022756,2]
[342796057,1732141840351,-500.0,0.00022756,2]
[342796059,1732141840360,-500.0,0.00022756,2]
[342796061,1732141840370,-500.0,0.00022757,2]
[342796063,1732141840379,-500.0,0.00022757,2]
[342796064,1732141840388,-500.0,0.00022757,2]
[342796066,1732141840397,-500.0,0.00022757,2]
[342796068,1732141840407,-500.0,0.00022757,2]
[342796069,1732141840416,-500.0,0.00022757,2]
[342796071,1732141840428,-500.0,0.00022757,2]
[342796072,1732141840437,-500.0,0.00022757,2]
[342796073,1732141840446,-500.0,0.00022757,2]
[342796074,1732141840456,-500.0,0.00022757,2]
[342796075,1732141840465,-500.0,0.00022757,2]
[342796076,1732141840477,-500.0,0.00022757,2]
[342796077,1732141840487,-500.0,0.00022757,2]
[342796078,1732141840496,-500.0,0.00022757,2]
[342796079,1732141840505,-500.0,0.00022757,2]
[342796080,1732141840515,-500.0,0.00022757,2]
[342796081,1732141840526,-500.0,0.00022757,2]
[342796082,1732141840536,-500.0,0.00022757,2]
[342796083,1732141840545,-500.0,0.00022757,2]
[342796084,1732141840557,-500.0,0.00022757,2]
[342796085,1732141840567,-500.0,0.00022757,2]
[342796086,1732141840576,-500.0,0.00022757,2]
[342796087,1732141840586,-500.0,0.00022757,2]
[342796088,1732141840595,-430.13385662,0.00022757,2]
[342796089,1732141840604,-500.0,0.00022757,2]
[342796090,1732141840613,-500.0,0.00022757,2]
[342796091,1732141840623,-500.0,0.00022757,2]
[342796092,1732141840632,-152.3855504,0.00022757,2]
[342796093,1732141840641,-500.0,0.00022757,2]
[342796094,1732141840651,-500.0,0.00022758,2]
[342796095,1732141840660,-500.0,0.00022758,2]
[342796096,1732141840671,-500.0,0.00022758,2]
[342796097,1732141840682,-375.41527322,0.00022758,2]
[342796098,1732141840691,-500.0,0.00022759,2]
[342796099,1732141840700,-500.0,0.00022759,2]
[342796100,1732141840709,-500.0,0.00022759,2]
[342796101,1732141840719,-500.0,0.00022759,2]
[342796102,1732141840729,-500.0,0.00022759,2]
[342796103,1732141840738,-500.0,0.00023029,2]
[342796104,1732141840747,-242.46140109,0.00023029,2]
[342796105,1732141840756,-500.0,0.00023029,2]
[342796106,1732141840765,-500.0,0.00023029,2]
[342796107,1732141840774,-333.55,0.00023029,2]
[342796108,1732141840784,-500.0,0.0002303,2]
[342796109,1732141840795,-500.0,0.0002303,2]
[342796110,1732141840804,-500.0,0.0002303,2]
[342796111,1732141840813,-500.0,0.0002303,2]
[342796112,1732141840823,-500.0,0.0002303,2]
[342796113,1732141840832,-500.0,0.0002303,2]
[342796114,1732141840842,-500.0,0.0002303,2]
[342796115,1732141840851,-500.0,0.0002303,2]
[342796116,1732141840860,-500.0,0.0002303,2]
[342796117,1732141840869,-500.0,0.0002303,2]
[342796118,1732141840879,-500.0,0.0002303,2]
[342796119,1732141840888,-500.0,0.0002303,2]
[342796120,1732141840897,-500.0,0.0002303,2]
[342796121,1732141840906,-500.0,0.0002303,2]
[342796122,1732141840915,-500.0,0.0002303,2]
[342796123,1732141840926,-500.0,0.0002303,2]
[342796124,1732141840935,-500.0,0.0002303,2]
[342796125,1732141840944,-744.23,0.0002303,2]
[342796126,1732141840953,-500.0,0.0002303,2]
[342796127,1732141840962,-500.0,0.0002303,2]
[342796128,1732141840971,-500.0,0.0002303,2]
[342796129,1732141840980,-500.0,0.0002303,2]
[342796130,1732141840989,-500.0,0.0002303,2]
[342796131,1732141840998,-500.0,0.0002303,2]
[342796132,1732141841006,-500.0,0.0002303,2]
[342796133,1732141841016,-500.0,0.0002303,2]
[342796134,1732141841025,-500.0,0.0002303,2]
[342796135,1732141841034,-500.0,0.0002303,2]
[342796136,1732141841043,-500.0,0.0002303,2]
[342796137,1732141841052,-500.0,0.0002303,2]
[342796138,1732141841061,-500.0,0.0002303,2]
[342796139,1732141841070,-500.0,0.0002303,2]
[342796140,1732141841079,-500.0,0.0002303,2]